bitfinex/quotes_BTCUSD_20230901
["timestamp","ask_amount","ask_price","bid_price","bid_amount"]
[1693583916819,0.56614828,25821.0,25820.0,0.0001]
[1693583917017,0.56176828,25821.0,25820.0,0.0001]
[1693583917222,0.56008828,25821.0,25820.0,0.0001]
[1693583917580,0.56170828,25821.0,25820.0,0.0001]
[1693583917712,0.56554828,25821.0,25820.0,0.0001]
[1693583918056,0.56596828,25821.0,25820.0,0.0001]
[1693583918277,0.56488828,25821.0,25820.0,0.0001]
[1693583918476,0.58314828,25821.0,25820.0,0.0001]
[1693583918683,0.58410828,25821.0,25820.0,0.0001]
[1693583918838,0.58476828,25821.0,25820.0,0.0001]
[1693583919041,0.58176828,25821.0,25820.0,0.0001]
[1693583919235,0.58182828,25821.0,25820.0,0.0001]
[1693583919442,0.57852828,25821.0,25820.0,0.0001]
[1693583919676,0.57372828,25821.0,25820.0,0.0001]
[1693583919849,0.50508828,25821.0,25820.0,0.0001]
[1693583920047,0.57126828,25821.0,25820.0,0.0001]
[1693583920296,0.57330828,25821.0,25820.0,0.0001]
[1693583920472,0.58176828,25821.0,25820.0,0.0001]
[1693583920677,0.58332828,25821.0,25820.0,0.0001]
[1693583920878,0.58368828,25821.0,25820.0,0.0001]
[1693583921083,0.50508828,25821.0,25820.0,0.0001]
[1693583922654,0.50508828,25821.0,25820.0,0.0101]
[1693583923645,0.50508828,25821.0,25820.0,0.3101]
[1693583923846,0.66798828,25821.0,25820.0,0.3101]
[1693583924416,0.66798828,25821.0,25820.0,0.40175487]
[1693583925420,0.66798828,25821.0,25820.0,0.3101]
[1693583925987,0.75480828,25821.0,25820.0,0.3101]
[1693583926183,0.75654828,25821.0,25820.0,0.3101]
[1693583926320,0.75660828,25821.0,25820.0,0.3101]
[1693583926707,0.75564828,25821.0,25820.0,0.3101]
[1693583926986,0.75474828,25821.0,25820.0,0.3101]
[1693583927195,0.77154828,25821.0,25820.0,0.3101]
[1693583927329,0.76794828,25821.0,25820.0,0.3101]
[1693583927686,0.76746828,25821.0,25820.0,0.3101]
[1693583927841,0.76764828,25821.0,25820.0,0.3101]
[1693583928041,0.76722828,25821.0,25820.0,0.3101]
[1693583928260,0.76692828,25821.0,25820.0,0.3101]
[1693583928504,0.76668828,25821.0,25820.0,0.3101]
[1693583928708,0.76722828,25821.0,25820.0,0.3101]
[1693583928905,0.77172828,25821.0,25820.0,0.3101]
[1693583929107,1.03615869,25821.0,25820.0,0.3101]
[1693583929288,1.24363869,25821.0,25820.0,0.3101]
[1693583929492,1.24471869,25821.0,25820.0,0.3101]
[1693583929713,1.25479869,25821.0,25820.0,0.0101]
[1693583929917,1.25455869,25821.0,25820.0,0.0101]
[1693583930161,1.22187869,25821.0,25820.0,0.0101]
[1693583930341,1.06945869,25821.0,25820.0,0.0101]
[1693583930540,1.06237869,25821.0,25820.0,0.10175487]
[1693583930743,1.06261869,25821.0,25820.0,0.10175487]
[1693583930945,1.05783869,25821.0,25820.0,0.10175487]
[1693583931153,1.05639869,25821.0,25820.0,0.10175487]
[1693583931374,1.05645869,25821.0,25820.0,0.10175487]
[1693583931576,1.06081869,25821.0,25820.0,0.10175487]
[1693583931775,0.79124828,25821.0,25820.0,0.10175487]
[1693583931932,0.75416828,25821.0,25820.0,0.23923717]
[1693583932157,0.75816828,25821.0,25820.0,0.1475823]
[1693583932358,0.75594828,25821.0,25820.0,0.35424813]
[1693583932578,0.75624828,25821.0,25820.0,0.35424813]
[1693583932754,0.75366828,25821.0,25820.0,0.35424813]
[1693583932958,0.66798828,25821.0,25820.0,0.53755787]
[1693583933866,0.66798828,25821.0,25820.0,0.40007557]
[1693583934094,0.66798828,25821.0,25820.0,0.70007557]
[1693583934295,0.73698828,25821.0,25820.0,0.92921274]
[1693583934504,0.66798828,25821.0,25820.0,0.92921274]
[1693583934947,0.73824828,25821.0,25820.0,0.92921274]
[1693583935080,0.66798828,25821.0,25820.0,0.745903]
[1693583935493,0.66798828,25821.0,25820.0,1.23694017]
[1693583936646,0.66798828,25821.0,25820.0,1.42227927]
[1693583936851,0.77262828,25821.0,25820.0,1.42227927]
[1693583937070,0.78144828,25821.0,25820.0,1.33215168]
[1693583937273,0.78012828,25821.0,25820.0,1.14681258]
[1693583937476,0.78012828,25821.0,25820.0,1.33215168]
[1693583937477,0.78000828,25821.0,25820.0,1.33215168]
[1693583937679,0.77868828,25821.0,25820.0,1.33215168]
[1693583937883,0.77820828,25821.0,25820.0,1.33215168]
[1693583938087,0.77370828,25821.0,25820.0,1.14681038]
[1693583938323,0.77370828,25821.0,25820.0,1.33214948]
[1693583938324,0.75408828,25821.0,25820.0,1.33214948]
[1693583938529,0.75036828,25821.0,25820.0,1.1931421]
[1693583938653,0.75012828,25821.0,25820.0,1.1931421]
[1693583938856,0.75024828,25821.0,25820.0,0.91408089]
[1693583939060,0.75156828,25821.0,25820.0,0.91408089]
[1693583939261,0.66798828,25821.0,25820.0,0.91408089]
[1693583940273,0.75276828,25821.0,25820.0,0.91408089]
[1693583940475,0.75372828,25821.0,25820.0,0.91408089]
[1693583940744,0.75204828,25821.0,25820.0,0.91408089]
[1693583941033,0.75090828,25821.0,25820.0,0.91408089]
[1693583941233,0.66798828,25821.0,25820.0,0.91408089]
[1693583941805,0.66798828,25821.0,25820.0,1.14321806]
[1693583942597,0.74694828,25821.0,25820.0,1.14321806]
[1693583942822,0.66798828,25821.0,25820.0,1.14321806]
[1693583943425,0.43008828,25821.0,25820.0,0.95787896]
[1693583943650,0.43008828,25821.0,25820.0,0.77374179]
[1693583943651,0.21524759,25821.0,25820.0,0.77374179]
[1693583943903,0.19946159,25821.0,25820.0,1.12560673]
[1693583944655,0.19946159,25821.0,25820.0,0.77374179]
[1693583944848,0.19146159,25821.0,25820.0,0.77374179]
[1693583945052,0.31136159,25821.0,25820.0,0.73374179]
[1693583945249,0.31836159,25821.0,25820.0,0.79474179]
[1693583945515,0.38576159,25821.0,25820.0,0.99334794]
[1693583945690,0.37970159,25821.0,25820.0,0.96034794]
[1693583945929,0.39884159,25821.0,25820.0,0.99334794]
[1693583946135,0.44656159,25821.0,25820.0,0.98004035]
[1693583946341,0.44578159,25821.0,25820.0,1.1190209]
[1693583946543,0.43798159,25821.0,25820.0,1.1190209]
[1693583946745,0.60080159,25821.0,25820.0,1.1190209]
[1693583946955,0.60350159,25821.0,25820.0,1.1190209]
[1693583947170,0.60302159,25821.0,25820.0,1.1190209]
[1693583947351,0.60188159,25821.0,25820.0,1.1190209]
[1693583947614,0.60032159,25821.0,25820.0,0.98004035]
[1693583947824,0.60212159,25821.0,25820.0,0.98004035]
[1693583948029,0.66924159,25821.0,25820.0,0.98004035]
[1693583948233,0.88827177,25821.0,25820.0,1.11901523]
[1693583948440,1.08759177,25821.0,25820.0,0.51970816]
[1693583948645,0.91905177,25821.0,25820.0,0.38073328]
[1693583948845,1.06803177,25821.0,25820.0,0.38073328]
[1693583949048,1.19129177,25821.0,25820.0,0.38073328]
[1693583949249,1.18901177,25821.0,25820.0,0.25507596]
[1693583949453,1.22465177,25821.0,25820.0,0.25507596]
[1693583949657,1.22369177,25821.0,25820.0,0.25207596]
[1693583949867,1.22333177,25821.0,25820.0,0.0401]
[1693583950073,0.98810159,25821.0,25820.0,0.0101]
[1693583950277,0.99602159,25821.0,25820.0,0.0101]
[1693583950487,1.23641654,25821.0,25820.0,0.0401]
[1693583950686,1.22513654,25821.0,25820.0,0.0401]
[1693583950890,1.22453654,25821.0,25820.0,0.0701]
[1693583951099,1.22321654,25821.0,25820.0,0.0701]
[1693583951298,0.98874159,25821.0,25820.0,0.0401]
[1693583951508,1.06362159,25821.0,25820.0,0.0701]
[1693583951710,1.33859201,25821.0,25820.0,0.0701]
[1693583951912,1.06338159,25821.0,25820.0,0.0701]
[1693583952086,1.31969666,25821.0,25820.0,0.0701]
[1693583952334,1.31837666,25821.0,25820.0,0.0701]
[1693583952536,1.28633666,25821.0,25820.0,0.0701]
[1693583952737,1.27817666,25821.0,25820.0,0.0701]
[1693583952942,1.25777666,25821.0,25820.0,0.0701]
[1693583953146,1.25789666,25821.0,25820.0,0.0701]
[1693583953345,1.26221666,25821.0,25820.0,0.0701]
[1693583953550,1.25777666,25821.0,25820.0,0.0701]
[1693583953798,1.25765666,25821.0,25820.0,0.0701]
[1693583953974,1.25417666,25821.0,25820.0,0.0701]
[1693583954180,1.26785666,25821.0,25820.0,0.0701]
[1693583954505,1.29017666,25821.0,25820.0,0.0701]
[1693583954729,1.29173666,25821.0,25820.0,0.0701]
[1693583954930,1.29065666,25821.0,25820.0,0.0701]
[1693583955133,1.29197666,25821.0,25820.0,0.0701]
[1693583955339,1.29089666,25821.0,25820.0,0.0701]
[1693583955518,1.27781666,25821.0,25820.0,0.0701]
[1693583955754,1.03922159,25821.0,25820.0,0.06]
[1693583955958,1.09069567,25818.0,25817.0,0.2516302]
[1693583956133,1.47778245,25818.0,25817.0,0.52747969]
[1693583956332,1.60816594,25818.0,25817.0,0.52747969]
[1693583956540,2.04244594,25818.0,25817.0,0.52747969]
[1693583956738,2.02804594,25818.0,25817.0,0.52747969]
[1693583956947,2.21450594,25818.0,25817.0,0.52747969]
[1693583957142,2.23014594,25818.0,25817.0,0.43682237]
[1693583957282,2.24562594,25818.0,25817.0,0.43682237]
[1693583957481,2.24238594,25818.0,25817.0,0.43682237]
[1693583957682,2.24470594,25818.0,25817.0,0.43682237]
[1693583957912,2.46361861,25818.0,25817.0,0.43682237]
[1693583958271,2.46109861,25818.0,25817.0,0.43682237]
[1693583958477,2.40641861,25818.0,25817.0,0.43482237]
[1693583958657,2.39865861,25818.0,25817.0,0.43482237]
[1693583958908,1.89686594,25818.0,25817.0,0.52947969]
[1693583959108,1.87128594,25818.0,25817.0,0.52947969]
[1693583959223,1.86846594,25818.0,25817.0,0.52947969]
[1693583959434,1.98981673,25818.0,25817.0,0.52942695]
[1693583959641,2.11935673,25818.0,25817.0,0.0529259]
[1693583959867,2.30633673,25818.0,25817.0,0.0529259]
[1693583960068,2.30141673,25818.0,25817.0,0.0529259]
[1693583960280,2.15273673,25818.0,25817.0,0.0529259]
[1693583960482,2.31521673,25818.0,25817.0,0.0529259]
[1693583960687,2.33705673,25818.0,25817.0,0.0529259]
[1693583960893,2.45503673,25818.0,25817.0,0.0529259]
[1693583961101,2.44615673,25818.0,25817.0,0.0529259]
[1693583961342,2.43511673,25818.0,25817.0,0.0529259]
[1693583961689,2.43223673,25818.0,25817.0,0.0529259]
[1693583961890,2.43175673,25818.0,25817.0,0.0529259]
[1693583962062,2.43139673,25818.0,25817.0,0.0529259]
[1693583962250,2.42995673,25818.0,25817.0,0.0529259]
[1693583962448,2.39371673,25818.0,25817.0,0.0529259]
[1693583962649,2.25247673,25818.0,25817.0,0.0529259]
[1693583962827,2.03134594,25818.0,25817.0,0.0529259]
[1693583963188,2.02036594,25818.0,25817.0,0.0529259]
[1693583963388,2.26157015,25818.0,25817.0,0.0529259]
[1693583963528,2.41361015,25818.0,25817.0,0.0529259]
[1693583963744,2.41313015,25818.0,25817.0,0.0529259]
[1693583963951,2.41337015,25818.0,25817.0,0.0529259]
[1693583964217,2.41325015,25818.0,25817.0,0.0529259]
[1693583964449,2.41301015,25818.0,25817.0,0.0529259]
[1693583964675,2.41217015,25818.0,25817.0,0.0529259]
[1693583964890,2.41265015,25818.0,25817.0,0.0529259]
[1693583965096,2.41205015,25818.0,25817.0,0.0529259]
[1693583965298,2.41169015,25818.0,25817.0,0.0529259]
[1693583965471,2.27813015,25818.0,25817.0,0.0529259]
[1693583965728,2.27393015,25818.0,25817.0,0.0529259]
[1693583965896,2.27555015,25818.0,25817.0,0.0529259]
[1693583966186,2.27927015,25818.0,25817.0,0.0529259]
[1693583966390,2.27795015,25818.0,25817.0,0.0529259]
[1693583966598,2.27147015,25818.0,25817.0,0.0529259]
[1693583966802,2.26811015,25818.0,25817.0,0.0529259]
[1693583967006,2.27057015,25818.0,25817.0,0.0529259]
[1693583967186,2.27399015,25818.0,25817.0,0.0529259]
[1693583967491,2.27573015,25818.0,25817.0,0.0529259]
[1693583967725,2.26931015,25818.0,25817.0,0.0529259]
[1693583967899,2.25935015,25818.0,25817.0,0.0529259]
[1693583968102,2.25491015,25818.0,25817.0,0.0529259]
[1693583968305,2.25461015,25818.0,25817.0,0.0529259]
[1693583968510,2.25221015,25818.0,25817.0,0.0529259]
[1693583968745,2.25275015,25818.0,25817.0,0.0529259]
[1693583968940,2.25269015,25818.0,25817.0,0.0529259]
[1693583969141,2.25689015,25818.0,25817.0,0.0529259]
[1693583969342,2.26385015,25818.0,25817.0,0.0529259]
[1693583969502,2.26481015,25818.0,25817.0,0.0529259]
[1693583969704,2.27003015,25818.0,25817.0,0.0529259]
[1693583969897,2.27153015,25818.0,25817.0,0.0529259]
[1693583970083,2.26361015,25818.0,25817.0,0.0529259]
[1693583970290,2.26403015,25818.0,25817.0,0.0529259]
[1693583970520,2.26685015,25818.0,25817.0,0.0529259]
[1693583970719,2.26601015,25818.0,25817.0,0.0529259]
[1693583970937,2.26529015,25818.0,25817.0,0.0529259]
[1693583971151,2.26289015,25818.0,25817.0,0.0529259]
[1693583971330,2.27669015,25818.0,25817.0,0.0529259]
[1693583971523,2.27663015,25818.0,25817.0,0.0529259]
[1693583971728,2.27705015,25818.0,25817.0,0.0529259]
[1693583972044,2.27687015,25818.0,25817.0,0.0529259]
[1693583972253,2.27315015,25818.0,25817.0,0.0529259]
[1693583972462,2.27303015,25818.0,25817.0,0.0529259]
[1693583972626,2.27585015,25818.0,25817.0,0.0529259]
[1693583972825,2.27501015,25818.0,25817.0,0.0529259]
[1693583973054,1.88568594,25818.0,25817.0,0.0529259]
[1693583973254,1.86450594,25818.0,25817.0,0.0529259]
[1693583973575,1.86768594,25818.0,25817.0,0.0529259]
[1693583973794,2.13497859,25818.0,25817.0,0.0529259]
[1693583974002,2.14535859,25818.0,25817.0,0.0529259]
[1693583974204,2.13467859,25818.0,25817.0,0.0529259]
[1693583974405,2.13611859,25818.0,25817.0,0.24452174]
[1693583974615,2.13905859,25818.0,25817.0,0.24452174]
[1693583974814,2.14067859,25818.0,25817.0,0.24452174]
[1693583975064,2.15147859,25818.0,25817.0,0.24452174]
[1693583975246,2.15333859,25818.0,25817.0,0.24452174]
[1693583975659,2.15297859,25818.0,25817.0,0.24452174]
[1693583975879,2.14577859,25818.0,25817.0,0.24452174]
[1693583976066,2.14499859,25818.0,25817.0,0.24452174]
[1693583976222,2.14517859,25818.0,25817.0,0.24452174]
[1693583976431,2.14511859,25818.0,25817.0,0.24452174]
[1693583976631,2.14601859,25818.0,25817.0,0.24452174]
[1693583976829,2.14613859,25818.0,25817.0,0.24452174]
[1693583977047,2.15273859,25818.0,25817.0,0.24452174]
[1693583977254,2.15309859,25818.0,25817.0,0.24452174]
[1693583977576,2.15351859,25818.0,25817.0,0.24452174]
[1693583977728,2.15345859,25818.0,25817.0,0.24452174]
[1693583977935,2.15351859,25818.0,25817.0,0.24452174]
[1693583978140,2.15345859,25818.0,25817.0,0.24452174]
[1693583978338,2.15291859,25818.0,25817.0,0.24452174]
[1693583978582,2.15315859,25818.0,25817.0,0.24452174]
[1693583978893,2.15945859,25818.0,25817.0,0.24452174]
[1693583979095,2.15945859,25818.0,25817.0,0.21359384]
[1693583979403,2.15837859,25818.0,25817.0,0.21359384]
[1693583979621,2.15465859,25818.0,25817.0,0.21359384]
[1693583979829,2.13215859,25818.0,25817.0,0.21359384]
[1693583979953,2.14019859,25818.0,25817.0,0.21359384]
[1693583980150,2.14805859,25818.0,25817.0,0.21359384]
[1693583980409,2.15393859,25818.0,25817.0,0.21359384]
[1693583980578,2.15531859,25818.0,25817.0,0.21359384]
[1693583980933,2.15597859,25818.0,25817.0,0.21359384]
[1693583981131,2.15627859,25818.0,25817.0,0.21359384]
[1693583981481,2.15579859,25818.0,25817.0,0.21359384]
[1693583981920,2.15585859,25818.0,25817.0,0.21359384]
[1693583982137,2.15621859,25818.0,25817.0,0.21359384]
[1693583982381,2.21242594,25818.0,25817.0,0.21359384]
[1693583982573,2.46846956,25818.0,25817.0,0.21359384]
[1693583982794,2.46798956,25818.0,25817.0,0.21359384]
[1693583983151,2.46582956,25818.0,25817.0,0.21359384]
[1693583983379,2.47986956,25818.0,25817.0,0.21359384]
[1693583983581,2.48430956,25818.0,25817.0,0.21359384]
[1693583983895,2.49126956,25818.0,25817.0,0.21359384]
[1693583984026,2.48786956,25818.0,25817.0,0.21359384]
[1693583984224,2.48426956,25818.0,25817.0,0.21359384]
[1693583984529,2.48290956,25818.0,25817.0,0.21459384]
[1693583984759,2.44406956,25818.0,25817.0,0.21659384]
[1693583984963,2.29646956,25818.0,25817.0,0.21659384]
[1693583985138,2.29238956,25818.0,25817.0,0.21659384]
[1693583985409,2.29172956,25818.0,25817.0,0.21659384]
[1693583985584,2.29316956,25818.0,25817.0,0.21659384]
[1693583985767,2.29274956,25818.0,25817.0,0.21659384]
[1693583985967,2.29154956,25818.0,25817.0,0.21659384]
[1693583986573,2.29142956,25818.0,25817.0,0.21659384]
[1693583986777,2.23864456,25818.0,25817.0,0.21659384]
[1693583986996,2.24122456,25818.0,25817.0,0.21659384]
[1693583987514,2.24128456,25818.0,25817.0,0.21659384]
[1693583987725,2.23918456,25818.0,25817.0,0.21659384]
[1693583987884,2.23870456,25818.0,25817.0,0.21659384]
[1693583988059,2.23864456,25818.0,25817.0,0.21659384]
[1693583988239,2.23756456,25818.0,25817.0,0.21659384]
[1693583988435,2.23660456,25818.0,25817.0,0.21659384]
[1693583988638,2.23696456,25818.0,25817.0,0.21659384]
[1693583988879,2.23774456,25818.0,25817.0,0.21659384]
[1693583989281,2.23414456,25818.0,25817.0,0.21659384]
[1693583989485,2.23444456,25818.0,25817.0,0.21659384]
[1693583989709,2.23462456,25818.0,25817.0,0.21659384]
[1693583989913,2.23468456,25818.0,25817.0,0.21659384]
[1693583990122,2.24284456,25818.0,25817.0,0.21659384]
[1693583990324,2.23894456,25818.0,25817.0,0.30919842]
[1693583990519,2.23582456,25818.0,25817.0,0.30919842]
[1693583990742,2.23582456,25818.0,25817.0,0.21659384]
[1693583990919,2.23576456,25818.0,25817.0,0.21659384]
[1693583991119,2.23504456,25818.0,25817.0,0.30919842]
[1693583991390,2.23510456,25818.0,25817.0,0.30919842]
[1693583991580,2.23516456,25818.0,25817.0,0.30919842]
[1693583991791,2.23492456,25818.0,25817.0,0.30919842]
[1693583991944,2.23834456,25818.0,25817.0,0.30919842]
[1693583992146,2.37904456,25818.0,25817.0,0.30919842]
[1693583992364,2.40508456,25818.0,25817.0,0.21659384]
[1693583992559,2.40424456,25818.0,25817.0,0.21659384]
[1693583992787,2.40448456,25818.0,25817.0,0.21659384]
[1693583992948,2.40196456,25818.0,25817.0,0.21659384]
[1693583993309,2.39968456,25818.0,25817.0,0.21659384]
[1693583993462,2.39968456,25818.0,25817.0,0.30919842]
[1693583993463,2.39860456,25818.0,25817.0,0.30919842]
[1693583993671,2.39824456,25818.0,25817.0,0.30919842]
[1693583993934,2.39656456,25818.0,25817.0,0.30919842]
[1693583994125,2.39620456,25818.0,25817.0,0.30919842]
[1693583994280,2.39596456,25818.0,25817.0,0.30919842]
[1693583994485,2.38804456,25818.0,25817.0,0.30919842]
[1693583994711,2.39164456,25818.0,25817.0,0.30919842]
[1693583994908,2.39392456,25818.0,25817.0,0.30919842]
[1693583995243,2.39152456,25818.0,25817.0,0.30919842]
[1693583995442,2.39716456,25818.0,25817.0,0.30919842]
[1693583995640,2.39836456,25818.0,25817.0,0.30919842]
[1693583995841,2.39992456,25818.0,25817.0,0.30919842]
[1693583996051,2.40220456,25818.0,25817.0,0.30919842]
[1693583996255,2.41036456,25818.0,25817.0,0.30919842]
[1693583996466,2.39608456,25818.0,25817.0,0.30919842]
[1693583996666,2.39104456,25818.0,25817.0,0.30919842]
[1693583996880,2.39170456,25818.0,25817.0,0.30919842]
[1693583997026,2.39152456,25818.0,25817.0,0.30919842]
[1693583997233,2.39332456,25818.0,25817.0,0.30919842]
[1693583997429,2.40688456,25818.0,25817.0,0.30919842]
[1693583997631,2.39992456,25818.0,25817.0,0.30919842]
[1693583997825,2.38216456,25818.0,25817.0,0.30919842]
[1693583998045,2.37832456,25818.0,25817.0,0.30919842]
[1693583998253,2.37796456,25818.0,25817.0,0.4481733]
[1693583998471,2.38780456,25818.0,25817.0,0.4481733]
[1693583998652,2.38612456,25818.0,25817.0,0.4481733]
[1693583998852,2.37952456,25818.0,25817.0,0.4481733]
[1693583999048,2.37784456,25818.0,25817.0,0.024998]
[1693583999250,2.24410456,25818.0,25817.0,0.024998]
[1693583999498,2.24446456,25818.0,25817.0,0.024998]
[1693583999822,2.24458456,25818.0,25817.0,0.024998]
[1693584000057,2.37904456,25818.0,25817.0,0.024998]
[1693584000269,2.24308456,25818.0,25817.0,0.024998]
[1693584000494,2.24044456,25818.0,25817.0,0.024998]
[1693584000753,2.24140456,25818.0,25817.0,0.024998]
[1693584000968,2.24164456,25818.0,25817.0,0.024998]
[1693584001173,2.24290456,25818.0,25817.0,0.024998]
[1693584001413,2.23948456,25818.0,25817.0,0.024241]
[1693584001647,2.23978456,25818.0,25817.0,0.024241]
[1693584001827,2.38372456,25818.0,25817.0,0.024241]
[1693584002183,2.38696456,25818.0,25817.0,0.024241]
[1693584002385,2.38732456,25818.0,25817.0,0.024241]
[1693584002721,2.37976456,25818.0,25817.0,0.024241]
[1693584002882,2.38060456,25818.0,25817.0,0.024241]
[1693584003082,2.37856456,25818.0,25817.0,0.021241]
[1693584003327,2.37456456,25818.0,25817.0,0.019241]
[1693584003457,1.98642094,25818.0,25817.0,0.019241]
[1693584003666,1.99124094,25818.0,25817.0,0.019241]
[1693584003875,1.99142094,25818.0,25817.0,0.019241]
[1693584004077,1.98968094,25818.0,25817.0,0.019241]
[1693584004312,1.99502094,25818.0,25817.0,0.019241]
[1693584004520,1.96078094,25818.0,25817.0,0.11205627]
[1693584004739,2.17791992,25818.0,25817.0,0.11405627]
[1693584004947,2.17791992,25818.0,25815.0,0.32485344]
[1693584004948,2.03928094,25818.0,25815.0,0.32485344]
[1693584005270,2.03928094,25818.0,25815.0,0.09282884]
[1693584005271,0.70188678,25816.0,25815.0,0.09282884]
[1693584005533,1.03563067,25815.0,25814.0,0.12427777]
[1693584005736,0.075,25813.0,25812.0,0.232048]
[1693584005940,0.85672149,25813.0,25812.0,0.34711711]
[1693584006147,1.20092149,25813.0,25812.0,0.20789421]
[1693584006349,1.09563067,25812.0,25811.0,0.252063]
[1693584006501,1.74251745,25812.0,25811.0,0.1128401]
[1693584006701,1.89531745,25812.0,25811.0,0.019998]
[1693584006907,2.19483745,25812.0,25811.0,0.019998]
[1693584007081,2.20995745,25812.0,25811.0,0.019998]
[1693584007291,0.6225,25808.0,25807.0,0.09283505]
[1693584007499,1.03563067,25805.0,25804.0,0.23207222]
[1693584007696,1.34771745,25805.0,25804.0,0.21593674]
[1693584007902,1.34771745,25805.0,25802.0,0.27844581]
[1693584007903,1.42271745,25805.0,25802.0,0.27844581]
[1693584008108,0.1199,25806.0,25804.0,0.04]
[1693584008343,0.31604678,25806.0,25805.0,0.11647672]
[1693584008664,0.30560678,25806.0,25805.0,0.33241346]
[1693584009053,0.30560678,25806.0,25805.0,0.42269628]
[1693584009265,0.30560678,25806.0,25805.0,0.44437494]
[1693584010256,0.42950678,25806.0,25805.0,0.44537494]
[1693584010416,0.30960678,25806.0,25805.0,0.44537494]
[1693584010624,0.30560678,25806.0,25805.0,0.44437494]
[1693584010849,0.30560678,25806.0,25805.0,0.51299409]
[1693584011053,0.31360678,25806.0,25805.0,0.51399409]
[1693584011489,0.30560678,25806.0,25805.0,0.51299409]
[1693584011660,0.30960678,25806.0,25805.0,0.51299409]
[1693584012054,0.30960678,25806.0,25805.0,0.51399409]
[1693584012620,0.30960678,25806.0,25805.0,0.44537494]
[1693584012621,0.28896096,25806.0,25805.0,0.44537494]
[1693584013022,0.28496096,25806.0,25805.0,0.67617375]
[1693584013224,0.28896096,25806.0,25805.0,0.67617375]
[1693584013423,0.29296096,25806.0,25805.0,0.63083278]
[1693584013625,0.28896096,25806.0,25805.0,0.63083278]
[1693584013838,0.28896096,25806.0,25805.0,0.62983278]
[1693584014207,0.29296096,25806.0,25805.0,0.63083278]
[1693584014418,0.29296096,25806.0,25805.0,0.44537494]
[1693584014623,0.17124157,25806.0,25805.0,0.44537494]
[1693584015303,1.14756396,25806.0,25805.0,0.001]
[1693584015507,0.24276157,25806.0,25805.0,0.001]
[1693584015726,0.13774357,25806.0,25805.0,0.18645784]
[1693584015920,0.13774357,25806.0,25805.0,0.23745879]
[1693584016303,0.13774357,25806.0,25805.0,0.05200095]
[1693584016503,0.13511357,25806.0,25805.0,0.14004679]
[1693584016714,0.13458857,25806.0,25805.0,0.62550463]
[1693584016852,0.13458857,25806.0,25805.0,0.53745879]
[1693584017254,0.13458857,25806.0,25805.0,0.7692576]
[1693584019425,0.13458857,25806.0,25805.0,0.79955679]
[1693584021585,0.09579657,25806.0,25805.0,0.79955679]
[1693584021793,0.39759235,25806.0,25805.0,0.79955679]
[1693584022173,0.39759235,25806.0,25805.0,0.7068196]
[1693584022375,0.39759235,25806.0,25805.0,0.71870054]
[1693584022595,0.5,25809.0,25805.0,0.5332427]
[1693584022812,0.38708678,25808.0,25806.0,0.39271949]
[1693584023842,0.00979747,25807.0,25806.0,0.39271949]
[1693584024046,0.39688425,25807.0,25806.0,0.40071949]
[1693584024661,0.35671425,25807.0,25806.0,0.53978111]
[1693584024788,0.36613625,25807.0,25806.0,0.53178111]
[1693584024989,0.37013625,25807.0,25806.0,0.53978111]
[1693584025321,0.013422,25807.0,25806.0,0.49971154]
[1693584025531,0.011505,25807.0,25806.0,0.50371154]
[1693584025913,0.011505,25807.0,25806.0,0.49971154]
[1693584026101,0.011505,25807.0,25806.0,1.61616481]
[1693584026298,0.015505,25807.0,25806.0,1.62016481]
[1693584026497,0.015441,25807.0,25806.0,1.62016481]
[1693584026858,0.008,25807.0,25806.0,1.62016481]
[1693584028455,0.007924,25807.0,25806.0,1.62016481]
[1693584028656,0.007924,25807.0,25806.0,1.80562265]
[1693584028878,0.007924,25807.0,25806.0,1.66656103]
[1693584029078,0.007924,25807.0,25806.0,1.80563577]
[1693584029282,0.007924,25807.0,25806.0,2.01825984]
[1693584029458,0.007924,25807.0,25806.0,1.78646103]
[1693584029700,0.01716774,25807.0,25806.0,2.01825984]
[1693584030099,0.0092478,25807.0,25806.0,1.832802]
[1693584030523,0.2605,25813.0,25806.0,1.832802]
[1693584030769,0.38708678,25812.0,25809.0,0.09272291]
[1693584030966,0.38708678,25812.0,25810.0,1.11645327]
[1693584031189,0.54758678,25812.0,25811.0,0.3]
[1693584031309,0.54758678,25812.0,25811.0,1.41645327]
[1693584032647,0.55911104,25812.0,25811.0,1.45345327]
[1693584033022,0.55611104,25812.0,25811.0,1.41645327]
[1693584033454,0.49598104,25812.0,25811.0,1.45345327]
[1693584033652,0.02,25816.0,25811.0,1.45345327]
[1693584033653,1.17149077,25817.0,25811.0,1.91192406]
[1693584033829,0.38708678,25816.0,25814.0,0.1199]
[1693584034032,0.38708678,25816.0,25815.0,1.41645327]
[1693584034660,0.36390878,25816.0,25815.0,1.41645327]
[1693584035121,0.36690878,25816.0,25815.0,1.41645327]
[1693584035475,0.36390878,25816.0,25815.0,1.41645327]
[1693584035676,0.36690878,25816.0,25815.0,1.45345327]
[1693584035881,0.003,25816.0,25815.0,1.45345327]
[1693584036299,0.4404,25818.0,25815.0,1.41645327]
[1693584036545,0.82748678,25818.0,25816.0,1.11645327]
[1693584036759,0.81728678,25818.0,25817.0,0.3]
[1693584036963,0.81728678,25818.0,25817.0,1.41645327]
[1693584037350,0.77438678,25818.0,25817.0,1.41645327]
[1693584037507,1.01171678,25818.0,25817.0,1.41645327]
[1693584037723,0.93566678,25818.0,25817.0,1.41645327]
[1693584037923,0.93566678,25818.0,25817.0,1.45345327]
[1693584038124,0.93866678,25818.0,25817.0,1.45345327]
[1693584039255,0.94166678,25818.0,25817.0,1.49045327]
[1693584039640,0.91930878,25818.0,25817.0,1.49045327]
[1693584039837,0.79494578,25818.0,25817.0,1.49045327]
[1693584040782,0.79405478,25818.0,25817.0,1.49045327]
[1693584042629,0.91395478,25818.0,25817.0,1.49045327]
[1693584042803,0.98025478,25818.0,25817.0,1.49045327]
[1693584043003,0.91395478,25818.0,25817.0,1.49045327]
[1693584043837,0.79405478,25818.0,25817.0,1.49045327]
[1693584046331,0.79405478,25818.0,25817.0,1.61035327]
[1693584046332,0.12240975,25818.0,25817.0,1.61035327]
[1693584046543,0.5488295,25822.0,25817.0,1.49045327]
[1693584046716,0.45308678,25821.0,25818.0,1.11645327]
[1693584046967,0.45434678,25821.0,25819.0,0.3]
[1693584047178,0.38708678,25821.0,25819.0,0.3]
[1693584047938,0.38708678,25821.0,25817.0,0.06028398]
[1693584048139,0.38708678,25821.0,25818.0,1.11614019]
[1693584048340,0.66038678,25821.0,25819.0,0.337]
[1693584048759,0.66038678,25821.0,25819.0,0.374]
[1693584049169,0.66038678,25821.0,25819.0,0.337]
[1693584049388,0.66038678,25821.0,25819.0,0.037]
[1693584049631,0.82638678,25821.0,25820.0,0.3]
[1693584049876,0.82338678,25821.0,25820.0,0.3]
[1693584050035,0.55308678,25821.0,25820.0,0.3]
[1693584050235,0.55608678,25821.0,25820.0,0.3]
[1693584050433,0.55308678,25821.0,25820.0,0.3]